bitfinex-derivatives/quotes_SOLF0:USTF0_20260308
["timestamp","ask_amount","ask_price","bid_price","bid_amount"]
[1773001186145,4.82414854,82.319,82.271,5.48930585]
[1773001187451,4.82414854,82.319,82.281,5.48930585]
[1773001190047,4.8897331,82.309,82.261,5.48930585]
[1773001191751,4.8897331,82.309,82.264,10.94]
[1773001192050,4.8897331,82.309,82.265,5.48930585]
[1773001196452,4.94270745,82.307,82.265,5.48930585]
[1773001197758,4.95450935,82.305,82.265,5.48930585]
[1773001200154,4.96456709,82.299,82.265,5.48930585]
[1773001200354,4.96456709,82.279,82.245,943.50756575]
[1773001201153,3.77442789,82.27,82.242,5.48930585]
[1773001201356,3.77442789,82.27,82.238,10.944]
[1773001201761,8.77253906,82.27,82.238,10.944]
[1773001202858,8.77253906,82.27,82.231,5.48930585]
[1773001203361,3.77442789,82.27,82.234,6.01610444]
[1773001203564,8.92572469,82.28,82.234,6.01610444]
[1773001204760,8.92572469,82.28,82.237,6.01610444]
[1773001205764,5.25967517,82.294,82.241,6.01995869]
[1773001206065,5.25967517,82.294,82.251,6.01995869]
[1773001206766,5.25967517,82.294,82.253,6.01995869]
[1773001207863,5.25967517,82.294,82.256,10.941]
[1773001209564,3.78113069,82.29,82.256,10.941]
[1773001210266,5.25967517,82.294,82.256,10.941]
[1773001211364,5.25967517,82.294,82.257,6.01995869]
[1773001219571,5.25967517,82.294,82.26,6.01995869]
[1773001225282,3.78113069,82.29,82.251,10.942]
[1773001225580,5.3819249,82.289,82.251,10.942]
[1773001227180,5.3819249,82.289,82.251,16.96195869]
[1773001227481,5.3819249,82.289,82.251,6.01995869]
[1773001227688,5.3796785,82.287,82.251,6.01995869]
[1773001229385,3.78113069,82.28,82.239,6.01995869]
[1773001229582,5.38372003,82.279,82.239,6.01995869]
[1773001231284,5.46304106,82.277,82.235,10.944]
[1773001233288,5.46304106,82.277,82.235,16.7416165]
[1773001235188,5.46304106,82.277,82.236,5.7976165]
[1773001238092,5.65536442,82.269,82.234,480.25842021]
[1773001238393,5.65536158,82.259,82.225,5.7976165]
[1773001239694,5.66789775,82.28,82.241,5.7976165]
[1773001239895,5.66789775,82.289,82.241,5.7976165]
[1773001240801,5.66789775,82.289,82.245,5.7976165]
[1773001241305,5.66789775,82.289,82.247,5.7976165]
[1773001241504,5.66789775,82.289,82.251,5.7976165]
[1773001244599,5.67975041,82.263,82.222,10.946]
[1773001244803,5.67975041,82.263,82.223,5.7976165]
[1773001247810,3.78113069,82.27,82.223,5.7976165]
[1773001249706,3.78113069,82.27,82.225,5.7976165]
[1773001249908,5.73093022,82.269,82.225,5.7976165]
[1773001250103,5.73093022,82.279,82.231,5.7976165]
[1773001250814,5.73093022,82.279,82.236,16.7416165]
[1773001251309,5.73093022,82.279,82.237,5.7976165]
[1773001255120,3.78113069,82.27,82.237,5.7976165]
[1773001260326,5.76815294,82.269,82.231,5.7976165]
[1773001260623,10.938,82.284,82.231,5.7976165]
[1773001260624,5.76815294,82.279,82.231,5.7976165]
[1773001261922,5.76815294,82.279,82.233,5.7976165]
[1773001262821,5.76815294,82.279,82.235,5.80069398]
[1773001265824,5.5691691,82.269,82.225,5.56802017]
[1773001266018,3.78113069,82.26,82.225,5.56802017]
[1773001267124,5.5691691,82.269,82.225,5.56802017]
[1773001267318,5.5691691,82.259,82.214,947.96379461]
[1773001267515,5.5691691,82.259,82.215,5.56802017]
[1773001269029,5.5691691,82.259,82.217,10.947]
[1773001269424,5.5691691,82.259,82.217,16.51502017]
[1773001270118,3.78113069,82.25,82.217,16.51502017]
[1773001270518,9.35029979,82.25,82.217,10.947]
[1773001270723,3.78113069,82.26,82.221,5.56802017]
[1773001271124,5.5691691,82.261,82.221,5.56802017]
[1773001271520,3.78390616,82.26,82.221,5.56802017]
[1773001271727,5.5691691,82.261,82.221,5.56802017]
[1773001271932,3.78390616,82.27,82.221,5.56802017]
[1773001273431,3.78390616,82.27,82.227,5.56802017]
[1773001274529,3.78390616,82.27,82.206,30.21191298]
[1773001274530,5.5691691,82.291,82.245,5.56802017]
[1773001274745,5.5691691,82.289,82.245,5.56802017]
[1773001279533,5.5691691,82.279,82.245,5.56802017]
[1773001280940,3.78390616,82.26,82.223,5.56802017]
[1773001282836,3.78390616,82.26,82.225,5.56802017]
[1773001283436,5.5691691,82.262,82.225,5.56802017]
[1773001305256,5.8188794,82.287,82.231,6.00398796]
[1773001306756,5.8188794,82.285,82.237,6.00398796]
[1773001307865,5.8188794,82.279,82.237,6.00398796]
[1773001312265,5.8188794,82.279,82.238,10.944]
[1773001312464,5.8188794,82.279,82.239,6.00398796]
[1773001320873,5.8188794,82.277,82.239,6.00398796]
[1773001330680,10.938,82.286,82.243,5.68505185]
[1773001330882,6.02470914,82.287,82.243,5.68505185]
[1773001331785,6.02470914,82.287,82.245,5.68505185]
[1773001332878,6.02470914,82.287,82.249,5.68505185]
[1773001339082,202.97308766,82.293,82.249,5.68505185]
[1773001339384,202.97308766,82.293,82.253,5.68505185]
[1773001340883,202.97308766,82.293,82.256,5.68505185]
[1773001341484,6.02470914,82.301,82.256,5.68505185]
[1773001343685,6.02470914,82.279,82.238,5.68505185]
[1773001344292,6.02470914,82.279,82.239,10.944]
[1773001344492,6.02470914,82.279,82.239,16.62905185]
[1773001344893,6.02470914,82.279,82.24,5.68505185]
[1773001347487,6.02470914,82.279,82.242,5.68505185]
[1773001350001,6.01939306,82.277,82.242,5.68505185]
[1773001383741,6.01939306,82.277,82.239,10.944]
[1773001384241,6.01939306,82.277,82.239,16.55073942]
[1773001384437,6.01939306,82.277,82.24,5.60673942]
[1773001388345,3.78141518,82.28,82.242,6.0208892]
[1773001388746,5.86354194,82.287,82.242,6.0208892]
[1773001389742,5.86354194,82.287,82.245,10.943]
[1773001389950,5.86354194,82.287,82.246,6.0208892]
[1773001405868,5.86354194,82.287,82.248,6.0208892]
[1773001420878,5.86354194,82.287,82.25,5.86894437]
[1773001421285,3.78159135,82.28,82.25,5.86894437]
[1773001421485,5.90042038,82.279,82.25,5.86894437]
[1773001433289,5.90042038,82.279,82.212,5.86894437]
[1773001433495,5.80484954,82.268,82.223,5.86894437]
[1773001433696,3.78159135,82.26,82.223,5.86894437]
[1773001434687,5.80386011,82.259,82.223,5.86894437]
[1773001434886,5.80386011,82.249,82.201,5.86894437]
[1773001435898,5.80386011,82.249,82.211,5.86894437]
[1773001436798,9.58577244,82.24,82.211,5.86894437]
[1773001436993,5.80418109,82.239,82.211,5.86894437]
[1773001440196,16.74818109,82.239,82.201,5.86894437]
[1773001440401,5.90042038,82.229,82.189,5.86894437]
[1773001440803,5.90042038,82.219,82.176,5.86894437]
[1773001441193,3.78159135,82.21,82.176,5.86894437]
[1773001441398,5.90042038,82.209,82.176,5.86894437]
[1773001443403,5.90042038,82.209,82.118,21.92]
[1773001443404,324.2107043,82.237,82.201,5.97413521]
[1773001446102,6.02990998,82.236,82.201,5.97413521]
[1773001446308,6.02990998,82.236,82.192,6.03256243]
[1773001449608,6.02990998,82.229,82.192,6.03256243]
[1773001457013,6.02990998,82.225,82.192,6.03256243]
[1773001458713,3.78718562,82.22,82.174,6.03256243]
[1773001458914,6.02990998,82.229,82.181,6.03256243]
[1773001459808,6.02990998,82.229,82.184,6.03256243]
[1773001471018,5.95990319,82.189,82.108,6.03256243]
[1773001471214,5.95990319,82.189,82.003,270.31795424]
[1773001471215,3.78718562,82.16,82.111,6.03256243]
[1773001471415,3.78718562,82.15,82.111,6.03256243]
[1773001471713,5.95831073,82.149,82.111,6.03256243]
[1773001472010,3.78718562,82.14,82.111,6.03256243]
[1773001472213,5.95831073,82.149,82.1,6.03256243]
[1773001472516,5.95807374,82.139,82.1,6.03256243]
[1773001472719,5.90713759,82.129,82.087,6.03256243]
[1773001473519,5.90713759,82.119,82.071,5.79992042]
[1773001475212,3.78718562,82.11,82.071,5.79992042]
[1773001476013,5.90713759,82.119,82.071,5.79992042]
[1773001476210,9.39223123,82.13,82.081,5.79992042]
[1773001477114,5.60471784,82.129,82.081,5.79992042]
[1773001480617,5.5849607,82.141,82.091,5.79992042]
[1773001481012,5.5849607,82.141,82.101,5.79992042]
[1773001486627,5.5933525,82.139,82.101,5.79992042]
[1773001492534,5.59163016,82.16,82.111,5.79992042]
[1773001492729,5.59163016,82.16,82.121,5.79992042]
[1773001494236,5.59195041,82.159,82.121,5.79992042]
[1773001496428,10.952,82.174,82.123,5.79992042]
[1773001496629,5.62192324,82.173,82.131,5.79992042]
[1773001497738,5.6704089,82.169,82.131,5.79992042]
[1773001498238,5.6704089,82.167,82.131,5.79992042]
[1773001500838,5.67617428,82.164,82.131,5.79992042]
[1773001501840,5.67465772,82.149,82.101,5.79992042]
[1773001502942,5.67465772,82.149,82.1,3.78718562]
[1773001502943,5.66904159,82.169,82.111,5.58007341]
[1773001503840,5.68207302,82.159,82.112,5.58007341]
[1773001505444,10.955,82.157,82.112,5.58007341]
[1773001506137,5.68283282,82.164,82.112,5.58007341]
[1773001506343,5.68283282,82.164,82.114,6.0682922]
[1773001506846,10.953,82.173,82.114,6.0682922]
[1773001507046,10.953,82.173,82.122,6.0682922]
[1773001507442,5.67955233,82.17,82.122,6.0682922]
[1773001507640,5.67955233,82.169,82.122,6.0682922]
[1773001509747,5.7130084,82.166,82.122,6.0682922]
[1773001510546,3.78718562,82.16,82.122,6.0682922]
[1773001511250,5.71283021,82.158,82.122,6.0682922]
[1773001515244,5.71283021,82.158,82.112,10.961]
[1773001517351,5.71283021,82.158,82.115,6.0682922]
[1773001519450,3.79353331,82.15,82.104,6.0682922]
[1773001519651,23.67272881,82.181,82.104,6.0682922]
[1773001519652,6.0387137,82.139,82.104,6.0682922]
[1773001520048,3.79353331,82.13,82.104,6.0682922]
[1773001520756,10.956,82.147,82.104,6.0682922]
[1773001522858,9.83224701,82.15,82.106,6.0682922]
[1773001523856,9.83224701,82.15,82.108,6.0682922]
[1773001526254,467.28077271,82.151,82.11,6.0682922]
[1773001526661,3.79353331,82.15,82.11,6.0682922]
[1773001526860,467.28077271,82.151,82.111,10.961]
[1773001527061,3.79353331,82.15,82.112,6.0682922]
[1773001530563,6.0387137,82.148,82.112,6.0682922]
[1773001533471,3.79353331,82.15,82.112,6.0682922]
[1773001535568,467.28077271,82.151,82.115,5.75743499]
[1773001535763,3.79353331,82.15,82.115,5.75743499]
[1773001540680,3.79353331,82.15,82.117,5.75743499]
[1773001545788,467.28077271,82.151,82.121,5.75743499]
[1773001546885,467.28077271,82.151,82.123,5.75743499]
[1773001548688,5.97212969,82.149,82.114,5.75743499]
[1773001550790,5.97212969,82.149,82.117,5.75743499]
[1773001551793,5.97212969,82.149,82.119,16.71743499]
[1773001551987,5.97212969,82.149,82.12,5.75743499]
[1773001553086,467.28077271,82.151,82.12,5.75743499]
[1773001554490,473.2529024,82.151,82.12,5.75743499]
[1773001554792,473.2529024,82.151,82.075,21.932]
[1773001554793,5.97212969,82.139,82.109,5.75743499]
[1773001554993,5.97212969,82.149,82.109,5.75743499]
[1773001559596,5.97212969,82.149,82.111,5.75743499]
[1773001560691,10.956,82.148,82.111,5.75743499]
[1773001560893,5.97212969,82.147,82.111,5.75743499]
[1773001562192,5.97212969,82.147,82.114,5.75743499]
[1773001562391,467.28077271,82.151,82.114,5.75743499]
[1773001563895,467.28077271,82.151,82.116,5.92550319]
[1773001564898,9.77713588,82.15,82.118,5.92550319]
[1773001565801,9.77713588,82.15,82.12,5.72121847]
[1773001576711,467.28077271,82.151,82.122,5.72121847]
[1773001577906,467.28077271,82.151,82.123,10.959]
[1773001578208,467.28077271,82.151,82.123,16.68021847]
[1773001578610,467.28077271,82.151,82.124,5.72121847]
[1773001579106,467.28077271,82.151,82.127,10.959]
[1773001579512,467.28077271,82.151,82.128,5.72121847]
[1773001579708,5.75443871,82.168,82.13,5.72121847]
[1773001580012,3.79261472,82.18,82.13,5.72121847]
[1773001580513,3.79261472,82.18,82.141,5.72121847]
[1773001581812,5.75443871,82.179,82.141,5.72121847]
[1773001582504,3.79261472,82.17,82.141,5.72121847]
[1773001587020,5.75443871,82.188,82.144,5.72121847]
[1773001587318,3.79261472,82.18,82.144,5.72121847]
[1773001587820,3.79261472,82.18,82.147,5.72121847]
[1773001589420,5.75443871,82.179,82.147,5.72121847]
[1773001591521,3.79261472,82.18,82.147,5.72121847]
[1773001594222,3.79261472,82.18,82.149,6.03790088]
[1773001595222,5.75443871,82.188,82.149,6.03790088]
[1773001596028,3.79261472,82.18,82.149,6.03790088]
[1773001598630,3.79261472,82.18,82.152,6.03790088]
[1773001598822,5.75443871,82.188,82.152,6.03790088]
[1773001599927,5.75443871,82.188,82.155,16.99290088]
[1773001600431,3.79261472,82.19,82.161,6.03790088]
[1773001601828,3.79261472,82.19,82.162,10.954]
[1773001608834,5.89988444,82.197,82.163,6.03790088]
[1773001609134,5.89988444,82.197,82.162,10.954]
[1773001610331,5.89988444,82.197,82.162,16.99190088]
[1773001611630,5.89988444,82.197,82.163,6.03790088]
[1773001613432,3.79261472,82.18,82.152,6.03790088]
[1773001613730,5.89988444,82.179,82.152,6.03790088]
[1773001614129,5.89988444,82.188,82.152,6.03790088]
[1773001615129,5.89988444,82.197,82.154,6.03790088]
[1773001616135,5.89988444,82.207,82.166,6.03790088]
[1773001616336,3.79261472,82.2,82.166,6.03790088]
[1773001619539,9.69249916,82.2,82.166,6.03790088]
[1773001625042,5.89988444,82.2,82.166,6.03790088]
[1773001627748,6.08378024,82.199,82.158,10.955]
[1773001628142,6.08378024,82.199,82.158,17.07059872]
[1773001628645,6.08378024,82.199,82.159,6.11559872]
[1773001632151,6.08378024,82.179,82.139,6.11559872]
[1773001632849,6.08378024,82.179,82.141,6.11559872]
[1773001633951,6.08378024,82.179,82.147,6.11559872]
[1773001638345,6.08378024,82.179,82.151,6.11559872]
[1773001638550,3.79057588,82.19,82.151,6.11559872]
[1773001639751,3.79057588,82.2,82.16,6.11559872]
[1773001640255,3.79057588,82.21,82.161,6.11559872]
[1773001640453,6.08378024,82.209,82.161,6.11559872]
[1773001641853,6.08378024,82.209,82.166,6.11559872]
[1773001642858,6.08378024,82.209,82.168,6.11559872]
[1773001646761,6.08378024,82.209,82.171,6.11559872]
[1773001651060,6.08378024,82.199,82.171,6.11559872]
[1773001652557,6.08378024,82.199,82.162,17.06959872]
[1773001652758,6.08378024,82.199,82.15,3.79057588]
[1773001652759,6.08378024,82.199,82.163,6.36884359]
[1773001653762,6.08378024,82.199,82.165,17.32284359]
[1773001654863,6.08378024,82.199,82.166,6.36884359]
[1773001676768,6.08378024,82.199,82.15,3.79057588]
[1773001676769,6.08378024,82.199,82.168,6.36884359]
[1773001681670,6.02376856,82.208,82.17,6.36884359]
[1773001682677,6.02376856,82.208,82.174,6.36884359]
[1773001683576,469.66166638,82.211,82.177,6.03766005]
[1773001684277,6.38429492,82.227,82.184,6.03766005]
[1773001685780,6.38429492,82.227,82.194,6.1246107]
[1773001694577,3.79057588,82.22,82.194,6.1246107]
[1773001695481,6.38429492,82.227,82.194,6.1246107]
[1773001698984,474.51356942,82.23,82.198,6.1246107]
[1773001700784,474.51356942,82.23,82.201,6.1246107]
[1773001702891,474.51356942,82.23,82.203,17.0726107]
[1773001709490,474.51356942,82.23,82.203,10.948]
[1773001709695,474.51356942,82.23,82.204,6.1246107]
[1773001711000,6.02051711,82.237,82.208,6.1246107]
[1773001717501,6.02051711,82.237,82.207,10.948]
[1773001717696,6.02051711,82.237,82.198,16.96935891]
[1773001718092,6.02051711,82.237,82.199,6.02035891]
[1773001718997,6.02051711,82.237,82.201,10.949]
[1773001726910,6.02051711,82.237,82.199,6.02035891]
[1773001727610,6.15487134,82.229,82.193,10.95]
[1773001735012,6.15487134,82.229,82.193,16.97035891]
[1773001735415,6.15487134,82.229,82.194,6.02035891]
[1773001753530,6.33334033,82.228,82.19,3.78683784]
[1773001756634,3.78683784,82.22,82.172,6.1318025]
[1773001756834,5.72559646,82.219,82.172,6.1318025]
[1773001757434,5.72559646,82.219,82.174,6.1318025]
[1773001758732,5.72559646,82.219,82.176,10.952]
[1773001758936,3.78683784,82.23,82.177,6.1318025]
[1773001759137,6.20714888,82.229,82.177,6.1318025]
[1773001759736,6.20714888,82.229,82.185,10.951]
[1773001759929,6.20714888,82.229,82.186,6.1318025]
[1773001761736,6.20714888,82.229,82.188,6.1318025]
[1773001764346,6.15194707,82.228,82.179,10.952]
[1773001764545,3.78713094,82.21,82.169,6.1318025]
[1773001764748,6.15194707,82.209,82.169,6.1318025]
[1773001765847,6.15194707,82.209,82.171,10.953]
[1773001769244,6.05013291,82.199,82.159,6.1318025]
[1773001770253,3.78713094,82.2,82.159,6.1318025]
[1773001770254,6.03713034,82.195,82.159,6.1318025]
[1773001770449,6.03667595,82.189,82.141,6.1318025]
[1773001771955,6.03667595,82.189,82.147,6.1318025]
[1773001776555,6.03667595,82.189,82.149,6.19684481]
[1773001777061,6.03667595,82.189,82.151,6.19684481]
[1773001781872,6.03667595,82.189,82.151,5.58910094]
[1773001788281,6.02926896,82.188,82.151,5.58910094]
[1773001790385,6.02926896,82.186,82.151,5.58910094]
[1773001796786,6.02926896,82.169,82.111,6.19684481]
[1773001796985,6.02926896,82.169,82.121,6.19684481]
[1773001797380,6.02926896,82.169,82.13,3.78713094]
[1773001797689,6.02926896,82.169,82.131,6.19684481]
[1773001799392,6.02926896,82.169,82.12,3.78713094]
[1773001799591,6.02926896,82.169,82.121,6.19684481]
[1773001803984,5.78281274,82.166,82.121,6.19684481]
[1773001806984,5.8741142,82.163,82.121,6.19684481]
[1773001807992,5.8741142,82.179,82.131,5.89960161]
[1773001809892,5.8741142,82.179,82.133,5.89960161]
[1773001810693,3.57124514,82.18,82.133,5.89960161]
[1773001810889,10.95,82.193,82.141,5.89960161]
[1773001811190,11.29031386,82.236,82.18,3.78713094]
[1773001811494,3.78713094,82.24,82.19,3.78713094]
[1773001811694,3.78713094,82.24,82.181,5.89960161]
[1773001812591,10.944,82.234,82.19,3.78713094]
[1773001812792,0.5331842,82.233,82.19,3.78713094]
[1773001814394,0.33146195,82.229,82.182,5.89960161]
[1773001816987,0.33146195,82.229,82.098,37.87897712]
[1773001816988,0.29245624,82.209,82.161,5.89960161]
[1773001818395,0.28286304,82.189,82.15,5.89960161]
[1773001818603,3.78713094,82.18,82.15,5.89960161]
[1773001819698,3.79131399,82.18,82.15,5.89960161]
[1773001821792,0.28286304,82.189,82.15,5.89960161]
[1773001821994,0.28286304,82.189,82.137,5.89960161]
[1773001822204,0.34611821,82.179,82.137,5.89960161]
[1773001824999,0.34611821,82.179,82.141,5.89960161]
[1773001826700,0.32781537,82.241,82.171,5.89960161]
[1773001826900,0.32781537,82.241,82.191,5.89960161]
[1773001827303,0.32229336,82.239,82.191,5.89960161]
[1773001827502,0.32229336,82.239,82.201,5.89960161]
[1773001827698,0.31264658,82.255,82.211,5.89960161]
[1773001835207,5.32488963,82.307,82.241,6.13908857]
[1773001835510,5.32488963,82.307,82.24,3.79131399]
[1773001835511,5.32488963,82.307,82.27,3.79131399]
[1773001835708,5.32488963,82.307,82.195,5.44540852]
[1773001835908,5.32488963,82.299,82.251,5.44540852]
[1773001836115,5.32488963,82.299,82.261,5.44540852]
[1773001838610,5.32488963,82.299,82.25,3.79131399]
[1773001838812,5.32488963,82.289,82.248,5.44540852]
[1773001839006,5.32488963,82.279,82.234,5.44540852]
[1773001844418,5.32488963,82.329,82.271,5.44540852]
[1773001844620,5.32488963,82.329,82.29,3.79131399]
[1773001844821,5.32488963,82.329,82.284,5.44540852]
[1773001845222,5.32488963,82.329,82.29,3.79131399]
[1773001845417,5.32488963,82.329,82.284,5.44540852]
[1773001847718,5.32488963,82.342,82.29,3.79131399]
[1773001847923,5.32488963,82.348,82.301,5.44540852]
[1773001849931,306.65422913,82.35,82.303,5.44540852]
[1773001849932,302.86291514,82.35,82.303,5.44540852]
[1773001850429,302.86291514,82.35,82.304,10.935]
[1773001850631,302.86291514,82.35,82.305,5.44540852]
[1773001851132,302.86291514,82.35,82.311,5.44540852]
[1773001851427,9.11620362,82.37,82.313,5.44540852]
[1773001851627,3.79131399,82.36,82.313,5.44540852]
[1773001852224,3.79131399,82.36,82.248,21.886]
[1773001852225,3.79131399,82.36,82.317,5.44540852]
[1773001852624,3.79131399,82.36,82.248,21.886]
[1773001852625,3.79131399,82.35,82.307,5.44540852]
[1773001852825,3.79131399,82.34,82.307,5.44540852]
[1773001853726,5.32488963,82.349,82.307,5.44540852]
[1773001853921,5.32488963,82.364,82.307,5.44540852]
[1773001854424,10.11477164,82.36,82.307,5.44540852]
[1773001854630,10.11477164,82.36,82.294,5.44540852]
[1773001854631,5.32488963,82.359,82.294,5.44540852]
[1773001854834,5.32488963,82.349,82.294,5.44540852]
[1773001856833,5.32488963,82.349,82.297,5.44540852]
[1773001857331,5.32488963,82.349,82.301,5.44540852]
[1773001859733,5.32488963,82.349,82.291,5.44540852]
[1773001861034,5.32488963,82.346,82.291,5.44540852]
[1773001861234,5.32488963,82.346,82.293,5.44540852]
[1773001862532,5.32488963,82.346,82.295,5.44540852]
[1773001863236,5.32488963,82.346,82.307,5.7640997]
[1773001863932,10.928,82.356,82.307,5.7640997]
[1773001864438,10.928,82.356,82.309,5.7640997]
[1773001864828,5.44180236,82.355,82.309,5.7640997]
[1773001868636,5.38528671,82.337,82.296,5.59639647]
[1773001871432,5.38528671,82.337,82.283,5.59639647]
[1773001871635,5.38528671,82.329,82.278,10.938]
[1773001872930,5.38528671,82.326,82.278,10.938]
[1773001873536,3.77858904,82.32,82.278,10.938]
[1773001874336,9.16387575,82.32,82.278,10.938]
[1773001874742,5.38528671,82.319,82.278,10.938]
[1773001875039,3.77858904,82.31,82.271,5.59639647]
[1773001876542,3.77858904,82.31,82.276,5.59639647]
[1773001876737,5.38528671,82.319,82.276,5.59639647]
[1773001878038,5.38528671,82.309,82.267,5.59639647]
[1773001878236,5.38528671,82.299,82.251,5.59639647]
[1773001878436,3.77858904,82.29,82.251,5.59639647]
[1773001879439,5.38528671,82.299,82.251,5.59639647]
[1773001881744,5.38528671,82.299,82.253,5.59639647]
[1773001882145,3.7806478,82.28,82.237,5.59639647]
[1773001882345,3.7806478,82.28,82.239,5.59639647]
[1773001883748,5.38528671,82.279,82.239,5.59639647]
[1773001885944,3.7806478,82.27,82.239,5.59639647]
[1773001886650,3.7806478,82.26,82.226,5.59639647]
[1773001887743,3.7806478,82.26,82.226,16.54139647]
[1773001890246,5.38528671,82.269,82.226,16.54139647]
[1773001890852,5.38528671,82.269,82.227,5.59639647]
[1773001891147,5.38528671,82.269,82.229,5.59639647]
[1773001891547,5.38528671,82.267,82.229,5.59639647]
[1773001891749,9.16593451,82.26,82.211,5.59639647]
[1773001891954,5.38528671,82.259,82.211,5.59639647]
[1773001892352,10.94,82.268,82.221,5.59639647]
[1773001892749,16.71130644,82.268,82.221,5.59639647]
[1773001892955,5.77130644,82.267,82.221,5.59639647]
[1773001893254,5.77130644,82.267,82.177,21.904]
[1773001893255,5.77130644,82.259,82.21,9.61896646]
[1773001893455,5.77130644,82.259,82.21,5.83831866]
[1773001894051,5.77130644,82.259,82.212,5.83831866]
[1773001895653,3.7806478,82.25,82.212,5.83831866]
[1773001895854,3.7806478,82.25,82.213,10.947]
[1773001896051,3.7806478,82.25,82.213,16.78531866]
[1773001896454,3.7806478,82.25,82.214,5.83831866]
[1773001896653,5.77130644,82.259,82.214,5.83831866]
[1773001898457,3.7806478,82.25,82.214,5.83831866]
[1773001901055,5.77130644,82.333,82.241,5.83831866]
[1773001901260,29.85721166,82.376,82.164,11.96115181]
[1773001901261,5.77130644,82.32,82.27,3.7806478]
[1773001901462,5.77130644,82.309,82.264,5.83831866]
[1773001906363,5.77130644,82.309,82.27,3.7806478]
[1773001906560,5.77130644,82.324,82.281,5.83831866]
[1773001906761,5.77130644,82.336,82.291,5.83831866]
[1773001907564,5.77130644,82.336,82.294,5.83831866]
[1773001908968,3.7806478,82.34,82.294,5.83831866]
[1773001911370,5.77130644,82.348,82.3,3.7806478]
[1773001911573,5.77130644,82.348,82.301,5.83831866]
[1773001912274,5.77130644,82.339,82.301,5.83831866]
[1773001914670,5.77130644,82.351,82.301,5.83831866]
[1773001915780,5.77130644,82.351,82.303,5.83831866]
[1773001915981,3.7806478,82.35,82.303,5.83831866]
[1773001916484,5.77130644,82.351,82.311,5.83831866]
[1773001916683,3.7806478,82.36,82.311,5.83831866]
[1773001916976,5.77130644,82.363,82.311,5.83831866]
[1773001917180,5.77130644,82.363,82.321,5.83831866]
[1773001917374,5.77130644,82.376,82.321,5.83831866]
[1773001917576,5.77130644,82.359,82.321,5.83831866]
[1773001918878,5.77130644,82.359,82.312,10.934]
[1773001919475,5.77130644,82.359,82.312,16.77231866]
[1773001919680,5.77130644,82.359,82.313,5.83831866]
[1773001923190,6.00712668,82.379,82.331,5.57896288]
[1773001923390,6.00712668,82.379,82.341,5.57896288]
[1773001923790,9.78777448,82.39,82.341,5.57896288]
[1773001924290,6.00712668,82.389,82.341,5.57896288]
[1773001924691,6.00712668,82.388,82.341,5.57896288]
[1773001924990,6.00712668,82.379,82.341,5.57896288]
[1773001925586,5.52646504,82.377,82.33,3.7806478]
[1773001925792,9.30711284,82.36,82.315,5.43698766]
[1773001926192,5.52646504,82.36,82.323,5.43698766]
[1773001926392,3.7806478,82.37,82.323,5.43698766]
[1773001927494,3.7806478,82.35,82.31,5.43698766]
[1773001927993,3.7806478,82.34,82.293,5.43698766]
[1773001928393,9.30711284,82.34,82.293,5.43698766]
[1773001929490,5.52646504,82.339,82.293,5.43698766]
[1773001929697,5.52646504,82.337,82.293,5.43698766]
[1773001931998,10.929,82.347,82.293,5.43698766]
[1773001932899,16.45546504,82.347,82.296,5.43698766]
[1773001933901,16.45546504,82.347,82.3,10.936]
[1773001934496,16.45546504,82.347,82.302,10.935]
[1773001934801,16.45546504,82.347,82.302,16.37198766]
[1773001934996,5.52646504,82.346,82.302,16.37198766]
[1773001935204,5.52646504,82.344,82.302,5.43698766]
[1773001936701,5.52646504,82.341,82.29,5.43698766]
[1773001938005,5.52646504,82.338,82.29,5.43698766]
[1773001938806,5.52646504,82.336,82.29,5.43698766]
[1773001940608,10.931,82.334,82.29,5.43698766]
[1773001940908,5.52646504,82.333,82.29,5.43698766]
[1773001945311,5.52646504,82.333,82.291,5.43698766]
[1773001946511,5.52646504,82.367,82.326,10.932]
[1773001946706,5.52646504,82.367,82.327,5.43698766]
[1773001946906,5.52646504,82.38,82.327,5.43698766]
[1773001947914,5.52646504,82.394,82.348,5.43698766]
[1773001948113,5.52646504,82.407,82.348,5.43698766]
[1773001948814,5.52646504,82.407,82.358,5.43698766]
[1773001951016,5.52646504,82.404,82.347,5.43698766]
[1773001951609,10.922,82.403,82.348,10.929]
[1773001951812,5.52646504,82.402,82.349,5.43698766]
[1773001953016,5.52646504,82.402,82.353,10.929]
[1773001953416,5.52646504,82.402,82.353,16.62227167]
[1773001953616,3.7714032,82.4,82.354,5.69327167]
[1773001955418,5.52646504,82.402,82.361,5.69327167]
[1773001957021,5.52646504,82.402,82.363,5.69327167]
[1773001958825,3.7714032,82.4,82.363,5.69327167]
[1773001961030,5.82094477,82.424,82.363,5.69327167]
[1773001961328,29.84875914,82.493,82.269,50.01897712]
[1773001961329,5.82094477,82.449,82.401,5.69327167]
[1773001961917,5.82094477,82.439,82.392,10.923]
[1773001962118,5.82094477,82.439,82.387,5.69327167]
[1773001962119,3.7714032,82.43,82.387,5.69327167]
[1773001962329,292.52203249,82.476,82.387,5.69327167]
[1773001962330,3.7714032,82.42,82.387,5.69327167]